Workbook

Sheet N3_Practice_1_Q's
B2: N3 Numeracy - Practice Questions Created by Mr.Lafferty@mathsrevision.com
AZ7: 25
AZ8: =ROUND(RAND()*(6-1)+1,0)*10 -> 20 | BA8: =IF(AZ8=60,25,AZ8) -> 20
D9: ="Q1. Joseph weekly wage is £"&TEXT(AZ9,0)&". His brother Luke earns "&BA8&"% more than him." -> Q1. Joseph weekly wage is £1500. His brother Luke earns 20% more than him. | AZ9: =ROUND(RAND()*(15-3)+3,0)*100 -> 1500
E10: =" How much does his brother earn each week ?" -> How much does his brother earn each week ? | AG10: £ | AZ10: =AZ9+(BA8/100*AZ9) -> 1800
AZ14: =ROUND(RAND()*(199-115)+115,0) -> 131
D15: ="Q2. The average number of beans in a tin of beans is "&TEXT(AZ14,0)&". " -> Q2. The average number of beans in a tin of beans is 131. | AZ15: =ROUND(RAND()*(30-12)+12,0) -> 17
E16: =" How many beans in "&AZ15&" tins ?" -> How many beans in 17 tins ? | AL16: beans | AZ16: =AZ14*AZ15 -> 2227
AZ19: =ROUND(RAND()*(11-4)+4,0) -> 6 | BA19: =ROUND(RAND()*(11-2)+2,0) -> 7
AZ20: =ROUND(RAND()*(59-1)+1,0) -> 18 | BA20: =ROUND(RAND()*(59-1)+1,0) -> 2
D21: ="Q3. Kirsty is going on holiday. She left Edinburgh at "&AZ21&". " -> Q3. Kirsty is going on holiday. She left Edinburgh at 06:18. | AZ21: =TEXT(TIME(AZ19,AZ20,0),"hh:mm") -> 06:18 | BA21: =TEXT(TIME(BA19,BA20,0),"hh:mm") -> 07:02
E22: =" The journey took "&BA19&" hours and "&BA20&" minutes." -> The journey took 7 hours and 2 minutes. | AZ22: =TEXT(AZ21+BA21,"hh:mm") -> 13:20
E23: ="At what time did Kirsty arrive at her destination ?" -> At what time did Kirsty arrive at her destination ? | AZ23: =TEXT(AZ22,"hh:mm") -> 13:20
AZ25: =ROUND(RAND()*(10-1)+1,0)*0.5 -> 3 | BA25: =AZ25*1000 -> 3000
AZ26: =ROUND(ROUND(RAND()*(0.8-0.6)+0.6,1)*BA26,-1) -> 700 | BA26: =ROUND(BA25/3,-1) -> 1000
D27: ="Q4. Three different sized bottles of orange juice hold "&AZ26&"ml, "&AZ27&"ml and "&BA27&"ml of juice." -> Q4. Three different sized bottles of orange juice hold 700ml, 1000ml and 1400ml of juice. | AZ27: =ROUND(ROUND(RAND()*(1.1-0.9)+0.9,1)*BA26,-1) -> 1000 | BA27: =ROUND(ROUND(RAND()*(1.4-1.2)+1.2,1)*BA26,-1) -> 1400
E28: ="Can a "&AZ25&" litre bottle of orange juice fill the three smaller bottles of orange juice ?" -> Can a 3 litre bottle of orange juice fill the three smaller bottles of orange juice ? | AZ28: =IF(BA28<=BA25,"Yes","No") -> No | BA28: =AZ26+AZ27+BA27 -> 3100
AH29: ( Yes or No )
AZ32: =ROUND(RAND()*(30-11)+11,1)*1000 -> 19300
D33: ="Q5. Kristofer bought a carvan for £"&TEXT(AZ32,0)&". He sold it "&BA33&" years later. He made a loss of £"&BB33&"." -> Q5. Kristofer bought a carvan for £19300. He sold it 6 years later. He made a loss of £5790. | AZ33: =ROUND(RAND()*(0.9-0.51)+0.51,2)*AZ32 -> 13510 | BA33: =ROUND(RAND()*(6-2)+2,0) -> 6 | BB33: =AZ32-AZ33 -> 5790
E34: =" How much did he sell it for ?" -> How much did he sell it for ? | AG34: £ | AZ34: =AZ33 -> 13510
AZ38: =AZ40*AZ39 -> 67.2
D39: ="Q6. A shelf is "&AZ38&" cm long. It can hold "&AZ39&" identical books." -> Q6. A shelf is 67.2 cm long. It can hold 8 identical books. | AZ39: =ROUND(RAND()*(9-4)+4,0) -> 8 | BA39: =ROUND(RAND()*(6-2)+2,0) -> 4 | BB39: =AZ38-AZ39 -> 59.2
E40: =" What is the width of one book ?" -> What is the width of one book ? | AL40: cm | AZ40: =ROUND(RAND()*(9-4)+4,1) -> 8.4
BB43: =AZ48-AZ44 -> 40 | BC43: =BB43/2 -> 20
AZ44: =ROUND(RAND()*(7-1)+1,0)*10 -> 20 | BB44: =ROUND(RAND()*((BC43-1)-2)+2,0)*2+AZ44 -> 54 | BC44: =BB44/10 -> 5.4
D45: Q7. Write down the temperature dispalyed to the nearest 10oF | AZ45: =AZ44+10 -> 30 | BB45: =IF((BC44-BC45)=0,BB44+1,BB44) -> 54 | BC45: =TRUNC(BC44) -> 5
AL46: oF | AZ46: =AZ45+10 -> 40
AZ47: 50
AZ48: 60 | BB48: =ROUND(BB45,-1) -> 50
AZ63: =ROUND(RAND()*(15-6)+6,1) -> 13.1 | BA63: =ROUND(RAND()*(9-3)+3,0) -> 4
AZ64: =ROUNDUP(AZ63*BA63,0) -> 53
D65: ="Q8. Dylan is moving house. He needs to transport "&AZ64&" boxes using his van." -> Q8. Dylan is moving house. He needs to transport 53 boxes using his van.
E66: =" His van can only hold "&BA63&" boxes at a time." -> His van can only hold 4 boxes at a time. | AL66: trips | AZ66: =ROUNDUP(AZ64/BA63,0) -> 14
E67: How many trips will Dylan need to make to transport all the boxes to his new home.
AZ69: =ROUND(RAND()*(30-13)+13,0) -> 29 | BA69: =ROUND(RAND()*(2-1)+1,0) -> 2 | BB69: =AZ69/BA69 -> 14.5 | BC69: =ROUND(RAND()*(1-0)+0,0) -> 1
AZ70: =IF(BC69=0,(BA70*BB69+ROUND(RAND()*(5-1)+1,0)),(BA70*BB69-ROUND(RAND()*(5-1)+1,0))) -> 97.5 | BA70: =ROUND(RAND()*(10-4)+4,0) -> 7
D71: ="Q9. Connor's motorbike can travel for "&AZ69&" km on "&BA69&" litre of fuel." -> Q9. Connor's motorbike can travel for 29 km on 2 litre of fuel.
E72: =" He has "&BA70&" litres of fuel and plans a journey of "&AZ70&" km." -> He has 7 litres of fuel and plans a journey of 97.5 km. | AZ72: =IF(BC69=0,"No","Yes") -> Yes
E73: Will Connor have enough fuel for the journey? | AH73: ( Yes or No )
AY76: =ROUND(RAND()*(2-1)+1,0) -> 2 | AZ76: 1 | BA76: =ROUND(RAND()*(9-2)+2,0) -> 4 | BB76: =10-BA76 -> 6 | BC76: =BA76+BB76 -> 10 | BD76: Girls | BE76: Boys
D77: ="Q10. The pie chart shows the number of girls in the school assembly hall on Thursday." -> Q10. The pie chart shows the number of girls in the school assembly hall on Thursday. | AZ77: 2 | BA77: =ROUND(RAND()*(7-2)+2,0) -> 3 | BB77: =8-BA77 -> 5 | BC77: =BA77+BB77 -> 8
BA78: =LOOKUP($AY$76,$AZ$76:$AZ$77,BA76:BA77) -> 3 | BB78: =LOOKUP($AY$76,$AZ$76:$AZ$77,BB76:BB77) -> 5 | BC78: =LOOKUP($AY$76,$AZ$76:$AZ$77,BC76:BC77) -> 8
D79: ="(a) The pie chart is split into "&BC78&" equal parts." -> (a) The pie chart is split into 8 equal parts.
F97: ="What fraction of girls are in the assembly hall ?" -> What fraction of girls are in the assembly hall ? | AZ97: =BA78/BC78 -> 0.375
D101: ="(b) There are "&BC101&" pupils in the assembly hall." -> (b) There are 180 pupils in the assembly hall. | BA101: =ROUND(RAND()*(8-2)+2,0) -> 4 | BB101: =BA101/BA102 -> 0.8 | BC101: =BA101*BA102*ROUND(RAND()*(10-3)+3,0) -> 180
BA102: =BA101+1 -> 5 | BC102: =BA101/BA102*BC101 -> 144
E103: =" On Friday ," -> On Friday , | I103: =BB101 -> 0.8 | J103: ="of the class where boys. How many boys were in the class ?" -> of the class where boys. How many boys were in the class ?
B108: ="Q11. To compete for Britain in the Olympics 400m race you must :" -> Q11. To compete for Britain in the Olympics 400m race you must :
K110: * | L110: ="have a best time of under "&BA114&" seconds" -> have a best time of under 46 seconds | BC110: T | BD110: =ROUND(RAND()*(6-1)+1,0) -> 6
K111: * | L111: ="be over "&BA115&" years old" -> be over 17 years old | BC111: A | BD111: =ROUND(RAND()*(12-7)+7,0) -> 9
K112: * | L112: ="be under "&BA116&" weeks since last drugs test" -> be under 21 weeks since last drugs test | BC112: D | BD112: =ROUND(RAND()*(12-9)+9,0) -> 9
BA114: =ROUND(RAND()*(48-43)+43,0) -> 46 | BE114: Name | BI114: Time (secs) | BQ114: Name | BU114: Time (secs)
BA115: =ROUND(RAND()*(20-16)+16,0) -> 17 | BC115: =BD110 -> 6 | BD115: 1 | BE115: Jodie | BF115: =BI115 -> 44 | BI115: =IF($BD$110=1,($BA$114+ROUND(RAND()*(5-1)+1,0)),($BA$114-ROUND(RAND()*(5-1)+1,0))) -> 44 | BM115: T | BO115: =BD111 -> 9 | BP115: 1 | BQ115: =BE115 -> Jodie | BU115: =BI115 -> 44 | BY115: T
L116: Name | P116: Time (secs) | T116: Age | X116: Drugs Test | BA116: =ROUND(RAND()*(26-10)+10,0) -> 21 | BD116: 2 | BE116: Jodie | BF116: =BI116 -> 20 | BI116: =IF($BD$110=2,(BA115-ROUND(RAND()*(5-1)+1,0)),(BA115+ROUND(RAND()*(5-1)+1,0))) -> 20 | BM116: A | BP116: 2 | BQ116: =BE116 -> Jodie | BU116: =BI116 -> 20 | BY116: A
L117: =BE115 -> Jodie | P117: =BI115 -> 44 | T117: =BI116 -> 20 | X117: =BI117 -> 19 | BD117: 3 | BE117: Jodie | BF117: 19 | BI117: =IF($BD$110=3,(BA116+ROUND(RAND()*(5-1)+1,0)),(BA116-ROUND(RAND()*(5-1)+1,0))) -> 19 | BM117: D | BP117: 3 | BQ117: Jodie | BU117: 19 | BY117: D
L118: =BE118 -> Connor | P118: =BI118 -> 43 | T118: =BI119 -> 19 | X118: =BI120 -> 25 | BD118: 4 | BE118: Connor | BF118: 43 | BI118: =IF($BD$110=4,($BA$114+ROUND(RAND()*(5-1)+1,0)),($BA$114-ROUND(RAND()*(5-1)+1,0))) -> 43 | BM118: T | BP118: 4 | BQ118: Connor | BU118: 43 | BY118: T
L119: =BE121 -> Kirsty | P119: =BI121 -> 45 | T119: =BI122 -> 20 | X119: =BI123 -> 26 | BD119: 5 | BE119: Connor | BF119: 19 | BI119: =IF($BD$110=5,(BA115-ROUND(RAND()*(5-1)+1,0)),(BA115+ROUND(RAND()*(5-1)+1,0))) -> 19 | BM119: A | BP119: 5 | BQ119: Connor | BU119: 19 | BY119: A
L120: =BE124 -> Joseph | P120: =BI124 -> 44 | T120: =BI125 -> 18 | X120: =BI126 -> 18 | BD120: 6 | BE120: Connor | BF120: 25 | BI120: =IF($BD$110=6,(BA116+ROUND(RAND()*(5-1)+1,0)),(BA116-ROUND(RAND()*(5-1)+1,0))) -> 25 | BM120: D | BP120: 6 | BQ120: Connor | BU120: 25 | BY120: D
BD121: 7 | BE121: Kirsty | BF121: 45 | BI121: =IF($BD$111=7,($BA$114+ROUND(RAND()*(5-1)+1,0)),($BA$114-ROUND(RAND()*(5-1)+1,0))) -> 45 | BM121: T | BP121: 7 | BQ121: Kirsty | BU121: 45 | BY121: T
BD122: 8 | BE122: Kirsty | BF122: 20 | BI122: =IF($BD$111=8,(BA115-ROUND(RAND()*(5-1)+1,0)),(BA115+ROUND(RAND()*(5-1)+1,0))) -> 20 | BM122: A | BP122: 8 | BQ122: Kirsty | BU122: 20 | BY122: A
D123: Which two athletes will NOT qualify to compete in the Olympics ? | BD123: 9 | BE123: Kirsty | BF123: 26 | BI123: =IF($BD$111=9,(BA116+ROUND(RAND()*(5-1)+1,0)),(BA116-ROUND(RAND()*(5-1)+1,0))) -> 26 | BM123: D | BP123: 9 | BQ123: Kirsty | BU123: 26 | BY123: D
BD124: 10 | BE124: Joseph | BF124: 44 | BI124: =IF($BD$111=10,($BA$114+ROUND(RAND()*(5-1)+1,0)),($BA$114-ROUND(RAND()*(5-1)+1,0))) -> 44 | BM124: T | BP124: 10 | BQ124: Joseph | BU124: 44 | BY124: T
BD125: 11 | BE125: Joseph | BF125: 18 | BI125: =IF($BD$111=11,(BA115-ROUND(RAND()*(5-1)+1,0)),(BA115+ROUND(RAND()*(5-1)+1,0))) -> 18 | BM125: A | BP125: 11 | BQ125: Joseph | BU125: 18 | BY125: A
BD126: 12 | BE126: Joseph | BF126: 18 | BI126: =IF($BD$111=12,(BA116+ROUND(RAND()*(5-1)+1,0)),(BA116-ROUND(RAND()*(5-1)+1,0))) -> 18 | BM126: D | BP126: 12 | BQ126: Joseph | BU126: 18 | BY126: D
BE127: =LOOKUP(BC115,BD115:BD126,BE115:BE126) -> Connor | BQ127: =LOOKUP(BO115,BP115:BP126,BQ115:BQ126) -> Kirsty
BA129: =ROUND(RAND()*(5-1)+1,0) -> 1
B130: ="Q12. "&BF135&" people were asked their favourite sport." -> Q12. 56 people were asked their favourite sport. | BD130: 1 | BE130: Football | BF130: =IF($BA$129=1,15+ROUND(RAND()*(5-2)+2,0),ROUND(RAND()*(15-5)+5,0)) -> 18
BD131: 2 | BE131: Badminton | BF131: =IF($BA$129=2,15+ROUND(RAND()*(5-2)+2,0),ROUND(RAND()*(15-5)+5,0)) -> 8
BD132: 3 | BE132: Basketball | BF132: =IF($BA$129=3,15+ROUND(RAND()*(5-2)+2,0),ROUND(RAND()*(15-5)+5,0)) -> 8
BD133: 4 | BE133: Orienteering | BF133: =IF($BA$129=4,15+ROUND(RAND()*(5-2)+2,0),ROUND(RAND()*(15-5)+5,0)) -> 12
BD134: 5 | BE134: Swimming | BF134: =IF($BA$129=5,15+ROUND(RAND()*(5-2)+2,0),ROUND(RAND()*(15-5)+5,0)) -> 10
BE135: =LOOKUP(BA129,BD130:BD134,BE130:BE134) -> Football | BF135: =SUM(BF130:BF134) -> 56
D152: One person from the group is picked at random.
D154: Which flavour of crisps is most likely to be their sport ?

Sheet N3_Practice_1_Q's (2) (hidden)
B2: N3 Numracy - Practice Questions Created by Mr.Lafferty@mathsrevision.com
AZ7: 25
AZ8: =ROUND(RAND()*(6-1)+1,0)*10 -> 10 | BA8: =IF(AZ8=60,25,AZ8) -> 10
D9: ="Q9. Joseph weekly wage is £"&TEXT(AZ9,0)&". His brother Luke earns "&BA8&"% more than him." -> Q9. Joseph weekly wage is £600. His brother Luke earns 10% more than him. | AZ9: =ROUND(RAND()*(15-3)+3,0)*100 -> 600
E10: =" How much does his brother earn each week ?" -> How much does his brother earn each week ? | AZ10: =AZ9+(BA8/100*AZ9) -> 660
AZ14: =ROUND(RAND()*(199-115)+115,0) -> 134
D15: ="Q10. The average number of beans in a tin of beans is "&TEXT(AZ14,0)&". " -> Q10. The average number of beans in a tin of beans is 134. | AZ15: =ROUND(RAND()*(30-12)+12,0) -> 17
E16: =" How many beans in "&AZ15&" tins ?" -> How many beans in 17 tins ? | AZ16: =AZ14*AZ15 -> 2278
AZ19: =ROUND(RAND()*(11-4)+4,0) -> 5 | BA19: =ROUND(RAND()*(11-2)+2,0) -> 6
AZ20: =ROUND(RAND()*(59-1)+1,0) -> 55 | BA20: =ROUND(RAND()*(59-1)+1,0) -> 11
D21: ="Q11. Kirsty is going on holiday. She left Edinburgh at "&AZ21&". " -> Q11. Kirsty is going on holiday. She left Edinburgh at 05:55. | AZ21: =TEXT(TIME(AZ19,AZ20,0),"hh:mm") -> 05:55 | BA21: =TEXT(TIME(BA19,BA20,0),"hh:mm") -> 06:11
E22: =" The journey took "&BA19&" hours and "&BA20&" minutes." -> The journey took 6 hours and 11 minutes. | AZ22: =TEXT(AZ21+BA21,"hh:mm") -> 12:06
E23: ="At what time did Kirsty arrive at her destination ?" -> At what time did Kirsty arrive at her destination ? | AZ23: =TEXT(AZ22,"hh:mm") -> 12:06
AZ25: =ROUND(RAND()*(10-1)+1,0)*0.5 -> 2 | BA25: =AZ25*1000 -> 2000
AZ26: =ROUND(ROUND(RAND()*(0.8-0.6)+0.6,1)*BA26,-1) -> 400 | BA26: =ROUND(BA25/3,-1) -> 670
D27: ="Q12. Three different sized bottles of orange juice hold "&AZ26&"ml, "&AZ27&"ml and "&BA27&"ml of juice." -> Q12. Three different sized bottles of orange juice hold 400ml, 740ml and 940ml of juice. | AZ27: =ROUND(ROUND(RAND()*(1.1-0.9)+0.9,1)*BA26,-1) -> 740 | BA27: =ROUND(ROUND(RAND()*(1.4-1.2)+1.2,1)*BA26,-1) -> 940
E28: ="Can a "&AZ25&" litre bottle of orange juice fill the three smaller bottles of orange juice ?" -> Can a 2 litre bottle of orange juice fill the three smaller bottles of orange juice ? | AZ28: =IF(BA28<=BA25,"Yes","No") -> No | BA28: =AZ26+AZ27+BA27 -> 2080
AH29: ( Yes or No )
BB30: =AZ33-AZ31 ->  | BC30: =BB30/2 -> 
AZ31: =ROUND(RAND()*(7-1)+1,0)*10 -> 20 | BB31: =ROUND(RAND()*((BC30-1)-2)+2,0)*2+AZ31 ->  | BC31: =BB31/10 -> 
AZ32: =#REF!+10 -> 
AZ33: =AZ32+10 ->  | BB33: =ROUND(#REF!,-1) -> 
AZ48: =ROUND(RAND()*(15-6)+6,1) -> 11.5 | BA48: =ROUND(RAND()*(9-3)+3,0) -> 3
AZ49: =ROUNDUP(AZ48*BA48,0) -> 35
D50: ="Q8. Dylan is moving house. He needs to transport "&AZ49&" boxes using his van." -> Q8. Dylan is moving house. He needs to transport 35 boxes using his van.
E51: =" His van can only hold "&BA48&" boxes at a time." -> His van can only hold 3 boxes at a time. | AL51: trips | AZ51: =ROUNDUP(AZ49/BA48,0) -> 12
E52: How many trips will Dylan need to make to transport all the boxes to his new home.
